bitfinex/quotes_ETHUSD_20240907
["timestamp","ask_amount","ask_price","bid_price","bid_amount"]
[1725694822716,4.36104,2293.1,2292.6,0.08722279]
[1725694822717,4.3611,2293.0,2292.6,0.08722279]
[1725694824225,8.72205,2293.1,2292.6,4.44905279]
[1725694824621,8.72205,2293.1,2292.6,0.08722279]
[1725694824822,4.36101,2293.1,2292.6,0.08722279]
[1725694825029,4.36103,2293.1,2292.6,0.08722404]
[1725694825245,8.72205,2293.1,2292.6,0.08722404]
[1725694825612,8.72205,2293.1,2292.7,0.04198244]
[1725694825944,4.36114,2293.0,2292.7,0.04198244]
[1725694826149,4.36102,2293.1,2292.7,0.04198244]
[1725694826458,4.36111,2293.0,2292.7,0.04198244]
[1725694828527,4.36129,2292.9,2292.7,0.04198244]
[1725694828728,8.72211,2293.1,2292.7,0.04198244]
[1725694829043,4.36115,2293.0,2292.7,0.04198244]
[1725694829713,4.36102,2293.1,2292.7,0.04198244]
[1725694829913,8.72211,2293.1,2292.7,0.04198244]
[1725694830118,4.36076,2293.2,2292.7,4.40362244]
[1725694830343,4.36076,2293.2,2292.8,2.46201794]
[1725694830541,4.36076,2293.2,2292.8,2.50398804]
[1725694830741,4.36065,2293.3,2292.8,2.50398804]
[1725694831156,4.36073,2293.2,2292.8,2.50398804]
[1725694831818,4.36073,2293.2,2292.8,2.54870042]
[1725694832014,4.36065,2293.3,2292.8,2.54870042]
[1725694832263,4.36065,2293.3,2292.8,6.91007042]
[1725694832264,8.72128,2293.3,2292.8,6.91007042]
[1725694832417,4.36063,2293.3,2292.8,6.91007042]
[1725694832844,8.72126,2293.3,2292.8,2.54870042]
[1725694833844,4.36063,2293.3,2292.8,2.54870042]
[1725694834040,8.72129,2293.3,2292.8,2.54870042]
[1725694834240,4.36063,2293.3,2292.8,2.54870042]
[1725694834943,4.36063,2293.3,2292.8,6.91012042]
[1725694836287,4.3599,2293.7,2293.1,4.36076]
[1725694836439,8.71977,2293.7,2293.2,2.46200325]
[1725694836643,4.35986,2293.7,2293.2,6.90863554]
[1725694836953,4.35951,2293.9,2293.3,4.44770233]
[1725694837153,4.35951,2293.9,2293.4,4.44605962]
[1725694837474,4.35913,2294.1,2293.6,2.3748]
[1725694837475,4.35925,2294.0,2293.6,2.3748]
[1725694837955,4.35925,2294.0,2293.7,0.08531338]
[1725694839000,4.35942,2293.9,2293.7,0.08531338]
[1725694839746,8.71862,2294.0,2293.7,0.08531338]
[1725694840466,4.35941,2293.9,2293.7,0.08531338]
[1725694840669,4.35957,2293.8,2293.7,0.08531338]
[1725694841196,4.35957,2293.8,2293.7,0.08528872]
[1725694841357,4.35941,2293.9,2293.5,0.08719043]
[1725694841557,8.71889,2293.9,2293.6,0.08528872]
[1725694841756,4.35941,2293.9,2293.6,0.08528872]
[1725694842158,8.71891,2293.9,2293.6,0.08528872]
[1725694842364,4.35941,2293.9,2293.6,0.08528872]
[1725694842890,8.7189,2293.9,2293.6,0.08528872]
[1725694846370,4.35941,2293.9,2293.6,0.08528872]
[1725694846574,4.35941,2293.9,2293.4,21.81506563]
[1725694846575,8.71963,2293.7,2293.4,21.81506563]
[1725694846888,4.35976,2293.7,2293.5,0.08456113]
[1725694848391,4.35976,2293.7,2293.3,23.80078563]
[1725694848594,4.35976,2293.7,2293.4,0.08430226]
[1725694849098,8.71962,2293.7,2293.4,0.08430226]
[1725694849600,4.35996,2293.6,2293.4,0.08430226]
[1725694850091,4.35976,2293.7,2293.4,0.08430226]
[1725694850503,8.71962,2293.7,2293.4,0.08430226]
[1725694850665,4.35976,2293.7,2293.4,0.08430226]
[1725694850867,8.71961,2293.7,2293.4,0.08430226]
[1725694852097,4.35953,2293.9,2293.4,0.17149696]
[1725694852391,4.35953,2293.9,2293.4,4.53181696]
[1725694853369,4.35953,2293.9,2293.4,4.44462226]
[1725694854184,4.35949,2293.9,2293.4,23.88488789]
[1725694854388,4.36014,2293.5,2293.4,19.52456789]
[1725694854575,4.36014,2293.5,2293.4,0.08430226]
[1725694854773,4.36014,2293.5,2293.0,23.26026563]
[1725694854984,4.36014,2293.5,2293.4,0.08404337]
[1725694855324,4.36014,2293.5,2293.0,23.26026563]
[1725694855494,4.36014,2293.5,2293.4,0.08404337]
[1725694855664,4.36014,2293.5,2293.0,23.26026563]
[1725694855861,4.36014,2293.5,2293.4,0.08404337]
[1725694856107,4.36036,2293.4,2293.0,23.26026563]
[1725694857502,4.36064,2293.3,2293.0,23.26026563]
[1725694858006,4.36061,2293.3,2293.0,23.26026563]
[1725694860409,4.36089,2293.2,2293.0,23.26026563]
[1725694860642,4.36046,2293.4,2293.0,23.26026563]
[1725694861006,4.36046,2293.4,2293.1,0.08721339]
[1725694861513,4.36015,2293.5,2293.1,0.08721339]
[1725694863243,4.36034,2293.4,2293.1,0.08721339]
[1725694863622,8.72024,2293.6,2293.1,0.08721339]
[1725694863824,4.36019,2293.5,2293.1,0.08721339]
[1725694864569,4.36016,2293.5,2293.1,0.08721339]
[1725694864930,4.36005,2293.6,2293.1,4.44811339]
[1725694866067,4.36005,2293.6,2293.1,19.52747902]
[1725694866272,4.36048,2293.4,2293.1,19.44026563]
[1725694867268,4.36026,2293.5,2293.0,6.2125]
[1725694867269,6.6699,2293.5,2293.0,3.82]
[1725694867481,8.7218,2293.1,2293.0,3.82]
[1725694867800,11.0314,2293.1,2293.0,3.82]
[1725694867935,2.745605,2293.6,2293.0,3.82]
[1725694868282,4.36062,2293.3,2293.0,3.90721476]
[1725694869573,4.36061,2293.3,2293.0,3.82]
[1725694869768,4.3609,2293.1,2293.0,3.82]
[1725694869970,8.7218,2293.1,2293.0,3.82]
[1725694870174,9.837,2293.1,2293.0,3.82]
[1725694870739,9.837,2293.1,2293.0,3.89910061]
[1725694873184,8.7218,2293.1,2293.0,3.89910061]
[1725694873367,4.36027,2293.5,2293.0,3.89910061]
[1725694873683,4.35987,2293.7,2293.2,2.4899]
[1725694873901,4.36,2293.6,2293.3,0.08719877]
[1725694874043,4.35987,2293.7,2293.3,0.08719877]
[1725694874237,13.71902,2293.9,2293.4,0.07910061]
[1725694874471,9.35949,2293.9,2293.4,0.16629402]
[1725694874702,9.35949,2293.9,2293.4,4.52660402]
[1725694875679,5.0,2293.9,2293.5,4.36012]
[1725694875883,5.0,2293.9,2293.6,0.0871871]
[1725694876244,5.0,2293.9,2293.7,0.07910061]
[1725694877169,9.35939,2293.9,2293.7,0.07910061]
[1725694877486,8.71914,2293.8,2293.7,0.07910061]
[1725694877841,4.35983,2293.7,2293.2,21.93016563]
[1725694878147,4.35983,2293.7,2293.3,0.07910061]
[1725694878547,4.35983,2293.7,2293.2,2.4899]
[1725694878766,4.35983,2293.7,2293.4,0.07910061]
[1725694878961,5.0,2293.9,2293.4,4.36022]
[1725694879145,5.0,2293.9,2293.2,4.76842002]
[1725694879146,5.0,2293.9,2293.7,4.35969]
[1725694879361,5.0,2293.9,2293.8,0.08718331]
[1725694879684,5.0,2293.9,2293.8,6.04452092]
[1725694879991,5.0,2293.9,2293.8,6.04446012]
[1725694880146,5.0,2293.9,2293.8,12.89393012]
[1725694880348,4.08888165,2293.9,2293.8,15.34586247]
[1725694880648,4.08888165,2293.9,2293.8,15.34586543]
[1725694881251,4.08888165,2293.9,2293.8,12.89393012]
[1725694881477,4.08888165,2293.9,2293.8,15.17176531]
[1725694882080,4.08888165,2293.9,2293.8,15.17176903]
[1725694882383,4.08888165,2293.9,2293.8,12.89393012]
[1725694883290,4.08888165,2293.9,2293.8,0.07910061]
[1725694884147,4.08888165,2293.9,2293.8,19.51936624]
[1725694884874,4.08888165,2293.9,2293.8,26.36883624]
[1725694885060,4.08888165,2293.9,2293.8,30.72840624]
[1725694886092,4.08888165,2293.9,2293.8,26.36883624]
[1725694889171,4.08888165,2293.9,2293.8,22.00926624]
[1725694889380,8.44826165,2293.9,2293.8,19.51936624]
[1725694889683,4.08888165,2293.9,2293.8,19.51936624]
[1725694890194,4.08888165,2293.9,2293.8,0.07910061]
[1725694890802,4.08888165,2293.9,2293.8,2.43768271]
[1725694890963,4.08888165,2293.9,2293.8,2.35050061]
[1725694891163,4.08888165,2293.9,2293.8,0.07910061]
[1725694892627,4.08888165,2293.9,2293.8,0.16628427]
[1725694892892,4.08888165,2293.9,2293.8,0.07910061]
[1725694896302,8.44826165,2293.9,2293.8,0.07910061]
[1725694897902,12.80764165,2293.9,2293.8,0.07910061]
[1725694898209,14.74987782,2293.9,2293.8,0.07910061]
[1725694899884,19.10925782,2293.9,2293.8,0.07910061]
[1725694900082,21.91495782,2293.9,2293.8,0.07910061]
[1725694901826,4.36049,2293.4,2293.2,7.46]
[1725694902186,4.36049,2293.4,2293.3,0.07749982]
[1725694903093,4.36018,2293.5,2293.2,7.46]
[1725694903094,4.36052,2293.3,2293.2,7.46]
[1725694903407,4.36052,2293.3,2293.2,7.53749982]
[1725694903583,4.36034,2293.4,2293.2,7.53749982]
[1725694904734,8.72079,2293.4,2293.2,7.53749982]
[1725694904899,4.36034,2293.4,2293.2,7.53749982]
[1725694905229,4.36034,2293.4,2293.2,0.07749982]
[1725694905435,8.72079,2293.4,2293.2,0.07749982]
[1725694905726,4.36007,2293.6,2293.1,4.36084]
[1725694905937,4.3597,2293.8,2293.3,0.07836189]
[1725694906140,4.35977,2293.7,2293.3,0.08719561]
[1725694906436,4.35977,2293.7,2293.4,0.07836189]
[1725694906797,4.3597,2293.8,2293.4,0.07836189]
[1725694907343,8.71941,2293.8,2293.4,0.07836189]
[1725694907923,4.35981,2293.7,2293.4,0.07836189]
[1725694908143,4.08888165,2293.9,2293.4,0.07836189]
[1725694908349,5.15924181,2293.9,2293.1,6.80679316]
[1725694908644,4.35992,2293.7,2293.5,0.07836189]
[1725694908942,4.35992,2293.7,2293.1,11.16756316]
[1725694908943,4.35992,2293.7,2293.6,0.07836189]
[1725694909448,4.35992,2293.7,2293.3,0.08719567]
[1725694909621,4.35992,2293.7,2293.6,0.07836189]
[1725694910244,4.35992,2293.7,2293.3,0.08719567]
[1725694910711,4.35992,2293.7,2293.4,0.07836189]
[1725694912348,4.35998,2293.6,2293.4,0.07836189]
[1725694913822,8.71939,2293.8,2293.4,0.07836189]
[1725694914026,4.35969,2293.8,2293.4,0.07836189]
[1725694914216,4.35996,2293.6,2293.4,0.07836189]
[1725694915734,8.72007,2293.6,2293.4,0.07836189]
[1725694915907,4.35996,2293.6,2293.4,0.07836189]
[1725694916108,6.64464,2293.5,2293.4,0.07836189]
[1725694916613,4.35996,2293.6,2293.4,0.07836189]
[1725694917153,4.36014,2293.5,2293.4,0.07836189]
[1725694917543,4.35996,2293.6,2293.2,19.44026563]
[1725694917711,8.72008,2293.6,2293.4,0.07836189]
[1725694917909,8.72008,2293.6,2293.2,19.44026563]
[1725694918110,8.72008,2293.6,2293.3,0.07836189]
[1725694918310,8.72008,2293.6,2293.2,19.44026563]
[1725694918514,4.36014,2293.5,2293.4,0.07836189]
[1725694918746,4.36014,2293.5,2293.2,19.44026563]
[1725694918913,4.35996,2293.6,2293.4,0.07836189]
[1725694919115,4.35996,2293.6,2293.3,0.08720153]
[1725694919372,4.35996,2293.6,2293.4,0.07836189]
[1725694920010,4.35996,2293.6,2293.3,0.08720186]
[1725694920216,4.35996,2293.6,2293.4,0.07815249]
[1725694920837,4.35969,2293.8,2293.4,0.07815249]
[1725694921418,4.35969,2293.8,2293.5,0.07901441]
[1725694921639,4.35969,2293.8,2293.3,0.0871975]
[1725694921965,3.17776987,2293.9,2293.8,8.71914]
[1725694922256,3.17776987,2293.9,2293.8,20.71666407]
[1725694922415,1.55839333,2293.9,2293.8,28.1340207]
[1725694922612,1.55839333,2293.9,2293.8,32.91663798]
[1725694922813,1.55839333,2293.9,2293.8,31.58816306]
[1725694923061,1.55839333,2293.9,2293.8,30.59946851]
[1725694923353,1.55839333,2293.9,2293.8,31.13474506]
[1725694924523,1.55839333,2293.9,2293.8,26.23989851]
[1725694924822,1.55839333,2293.9,2293.8,23.20247528]
[1725694925046,1.55839333,2293.9,2293.8,26.23989851]
[1725694925242,1.55839333,2293.9,2293.8,25.23938449]
[1725694925444,1.55839333,2293.9,2293.8,24.83300425]
[1725694925632,1.55839333,2293.9,2293.8,21.79558102]
[1725694925832,1.55839333,2293.9,2293.8,25.23920045]
[1725694926049,1.55839333,2293.9,2293.8,24.83300425]
[1725694926351,1.55839333,2293.9,2293.8,21.79558102]
[1725694927053,1.55839333,2293.9,2293.8,24.83300425]
[1725694927252,1.55839333,2293.9,2293.8,21.79558102]
[1725694927559,1.55839333,2293.9,2293.8,21.79582326]
[1725694927731,1.55839333,2293.9,2293.8,20.43777401]
[1725694928059,1.55839333,2293.9,2293.8,19.88777401]
[1725694930150,1.55839333,2293.9,2293.8,17.61038041]
[1725694930351,1.55839333,2293.9,2293.8,19.88802653]
[1725694930554,1.55839333,2293.9,2293.8,19.88799013]
[1725694930759,1.55839333,2293.9,2293.8,15.52842013]
[1725694930961,1.55839333,2293.9,2293.8,13.25081041]
[1725694931925,1.55839333,2293.9,2293.8,11.73254801]
[1725694932131,1.55839333,2293.9,2293.8,17.61050036]
[1725694932346,1.55839333,2293.9,2293.8,17.61050498]
[1725694933122,1.55839333,2293.9,2293.8,19.88806203]
[1725694936825,1.55839333,2293.9,2293.8,17.61050498]
[1725694937030,1.55839333,2293.9,2293.8,16.09211801]
[1725694940154,1.55839333,2293.9,2293.8,11.73254801]
[1725694940532,1.55839333,2293.9,2293.8,16.09211801]
[1725694940728,1.55839333,2293.9,2293.8,19.88792977]
[1725694940936,1.55839333,2293.9,2293.8,21.97005651]
[1725694941131,1.55839333,2293.9,2293.8,24.61870263]
[1725694941905,1.55839333,2293.9,2293.8,26.07314366]
[1725694942169,1.55839333,2293.9,2293.8,23.79573463]
[1725694942332,1.55839333,2293.9,2293.8,25.7015715]
[1725694942533,0.05736643,2293.9,2293.8,26.07274026]
[1725694942773,0.05736643,2293.9,2293.8,25.16829923]
[1725694943941,2.87690208,2294.9,2294.2,0.4375]
[1725694944151,2.87690208,2294.9,2294.5,4.35814]
[1725694944482,2.87690208,2294.9,2294.6,0.08715169]
[1725694944769,2.87690208,2294.9,2294.7,0.07742608]
[1725694950201,2.421,2294.9,2294.7,0.07742608]
[1725694951086,6.77851,2294.9,2294.7,0.07742608]
[1725694954212,2.421,2294.9,2294.7,0.07742608]
[1725694960626,4.35738,2295.0,2294.7,0.07742608]
[1725694962986,8.71477,2295.0,2294.7,0.07742608]
[1725694963184,9.834077,2295.0,2294.7,0.07742608]
[1725694963390,2.4783,2294.8,2294.7,0.07742608]
[1725694963785,2.4783,2294.8,2294.5,23.7410192]
[1725694964000,2.4783,2294.8,2294.7,0.07702001]
[1725694964196,6.83597,2294.8,2294.7,0.07702001]
[1725694964498,8.0672567,2294.8,2294.5,19.3828992]
[1725694964628,8.0672567,2294.8,2294.7,0.07702001]
[1725694964831,8.0672567,2294.8,2294.5,19.3828992]
[1725694965033,6.83597,2294.8,2294.7,0.07702001]
[1725694965203,6.83597,2294.8,2294.5,19.3828992]
[1725694965409,6.83597,2294.8,2294.7,0.07702001]
[1725694965637,6.83597,2294.8,2294.5,19.3828992]
[1725694965844,6.83597,2294.8,2294.7,0.07702001]
[1725694966320,2.4783,2294.8,2294.5,19.3828992]
[1725694966614,6.8356,2295.0,2294.7,0.07702001]
[1725694966809,6.8356,2295.0,2294.6,0.08715156]
[1725694967047,2.4783,2295.0,2294.6,4.44511156]
[1725694967342,2.4783,2295.0,2294.7,0.07702001]
[1725694968126,2.4783,2295.0,2294.7,4.52202939]
[1725694968310,2.4783,2295.0,2294.7,4.43488001]
[1725694968837,2.4783,2295.0,2294.7,4.52202942]
[1725694973939,2.4783,2295.0,2294.7,23.90492862]
[1725694976814,2.4783,2295.0,2294.7,19.54706862]
[1725694977157,6.8356,2295.0,2294.7,19.45991921]
[1725694977457,7.51916,2295.0,2294.7,19.45991921]
[1725694979820,7.51916,2295.0,2294.7,0.07702001]
[1725694980163,1.5560574,2295.3,2294.7,0.07702001]
[1725694980164,2.2517,2295.3,2294.7,21.8202992]
[1725694980364,4.35635,2295.5,2294.9,4.35736]
[1725694980666,4.35635,2295.5,2295.0,4.05595298]
[1725694980956,4.35635,2295.5,2295.1,1.69204653]
[1725694981259,4.35635,2295.5,2295.0,0.08713399]
[1725694981458,4.35635,2295.5,2295.2,0.07313046]
[1725694981620,4.35635,2295.5,2295.0,0.08713399]
[1725694981824,4.35635,2295.5,2295.3,0.07313046]
[1725694982152,4.35635,2295.5,2295.4,0.07313046]
[1725694982327,4.35635,2295.5,2295.1,0.17391015]
[1725694982535,4.35635,2295.5,2295.4,0.07313046]
[1725694982734,4.35635,2295.5,2295.0,19.3828992]
[1725694982928,4.35635,2295.5,2295.4,0.07313046]
[1725694983146,4.35635,2295.5,2295.0,19.3828992]
[1725694983375,4.35635,2295.5,2295.4,0.07313046]
[1725694983679,4.35635,2295.5,2295.0,19.3828992]
[1725694983680,2.2517,2295.6,2295.1,4.44412398]
[1725694983843,4.35599,2295.7,2295.4,0.07313046]
[1725694984243,4.35599,2295.7,2295.1,4.44412398]
[1725694984753,4.3562,2295.6,2295.2,0.07313046]
[1725694985374,4.35599,2295.7,2295.2,0.07313046]
[1725694985742,4.35617,2295.6,2295.2,0.07313046]
[1725694985943,4.35617,2295.6,2295.2,19.45602966]
[1725694987549,4.35635,2295.5,2295.2,19.45602966]
[1725694988266,4.35599,2295.7,2295.2,19.45602966]
[1725694988267,4.35616,2295.6,2295.2,19.45602966]
[1725694988475,4.35599,2295.7,2295.2,19.45602966]
[1725694988643,8.7121,2295.7,2295.2,19.45602966]
[1725694990375,4.35599,2295.7,2295.2,19.45602966]
[1725694990581,4.35599,2295.7,2295.2,26.25332966]
[1725694991088,15.50146,2295.3,2295.2,0.07313046]
[1725694991395,4.35764,2294.9,2294.4,9.9004]
[1725694991692,4.35764,2294.9,2294.4,6.2604]
[1725694991993,8.71474,2295.0,2294.5,0.15684418]
[1725694992144,4.35733,2295.0,2294.5,0.15684418]
[1725694993746,8.71472,2295.0,2294.5,0.15684418]
[1725694995054,4.35733,2295.0,2294.5,0.15684418]
[1725694995566,8.71475,2295.0,2294.5,0.15684418]
[1725694996348,4.35755,2294.9,2294.5,0.06968411]
[1725694998184,4.3577,2294.8,2294.5,0.06968411]
[1725694999151,8.71547,2294.8,2294.5,0.06968411]
[1725694999875,4.3579,2294.7,2294.5,0.06968411]
[1725695000877,4.3579,2294.7,2294.5,19.45258331]
[1725695003177,4.3577,2294.8,2294.5,19.45258331]
[1725695003391,8.71556,2294.8,2294.5,19.45258331]
[1725695003594,4.35788,2294.7,2294.5,19.45258331]
[1725695006897,4.35788,2294.7,2294.6,19.3828992]
[1725695007097,4.35788,2294.7,2294.6,19.45336925]
[1725695012396,8.71576,2294.7,2294.6,19.45336925]
[1725695012897,8.71576,2294.7,2294.6,0.07047005]
[1725695013093,4.35788,2294.7,2294.4,6.2604]
[1725695013403,4.35816,2294.6,2294.5,0.0713051]
[1725695027521,8.71632,2294.6,2294.5,0.0713051]
[1725695027881,18.40790967,2294.6,2294.5,0.0713051]
[1725695028228,22.76606967,2294.6,2294.5,0.0713051]
[1725695028409,18.40790967,2294.6,2294.5,0.0713051]
[1725695032708,18.86388741,2294.6,2294.5,0.0713051]
[1725695036229,18.86388741,2294.6,2294.0,7.46]
[1725695036230,15.5649,2294.1,2294.0,7.46]
[1725695036399,8.71876,2293.9,2293.8,19.3828992]
[1725695036917,10.27525767,2293.9,2293.8,19.3828992]
[1725695039837,10.27525767,2293.9,2293.4,26.8428992]
[1725695039838,4.35986,2293.7,2293.4,26.8428992]
[1725695040036,4.35986,2293.7,2293.4,19.3828992]
[1725695040188,1.55649767,2293.9,2293.5,2.48699614]
[1725695040189,4.35949,2293.9,2293.5,2.48699614]
[1725695040392,4.35949,2293.9,2293.6,0.08718652]
[1725695040840,4.35913,2294.1,2293.7,2.3998]
[1725695040841,8.71824,2294.1,2293.7,2.3998]
[1725695041487,4.3592,2294.0,2293.7,2.3998]
[1725695043439,4.35911,2294.1,2293.7,2.3998]
[1725695043799,4.35911,2294.1,2293.8,0.06088745]
[1725695045300,4.35928,2294.0,2293.8,0.06088745]
[1725695045718,4.35928,2294.0,2293.7,19.3828992]
[1725695045913,4.35928,2294.0,2293.9,0.06088745]
[1725695046123,4.35911,2294.1,2293.8,19.3828992]
[1725695046124,4.35938,2293.9,2293.8,19.3828992]
[1725695047033,8.71876,2293.9,2293.8,19.3828992]
[1725695047394,9.99507577,2293.9,2293.8,19.3828992]
[1725695050005,4.36033,2293.4,2293.3,11.28]
[1725695050329,4.36033,2293.4,2293.3,3.82]
[1725695050529,8.72066,2293.4,2293.3,3.82]
[1725695050711,8.72066,2293.4,2293.3,3.88189373]
[1725695050909,4.36033,2293.4,2293.3,3.88189373]
[1725695051795,8.72066,2293.4,2293.3,3.88189373]
[1725695052836,4.36033,2293.4,2293.3,3.88189373]
[1725695053009,8.72066,2293.4,2293.3,3.88189373]
[1725695057001,4.36033,2293.4,2293.3,3.88189373]
[1725695057251,8.72066,2293.4,2293.3,3.88189373]
[1725695057410,4.36033,2293.4,2293.3,3.88189373]
[1725695058124,8.72066,2293.4,2293.3,3.88189373]
[1725695058527,4.36033,2293.4,2293.3,3.88189373]
[1725695058718,8.72066,2293.4,2293.3,3.88189373]
[1725695061311,4.36033,2293.4,2293.3,3.88189373]
[1725695062140,5.3074506,2296.0,2293.3,3.88189373]
[1725695062141,4.81500013,2294.2,2293.7,2.4517]
[1725695062372,4.35768,2294.8,2294.2,2.4517]
[1725695062587,2.0,2295.7,2294.2,2.4517]
[1725695062588,4.35724,2295.1,2294.4,4.35841]
[1725695062752,4.81343716,2295.0,2294.5,0.08715336]
[1725695063279,4.81334716,2295.0,2294.5,0.08715336]
[1725695063577,4.81334716,2295.0,2294.6,0.06255659]
[1725695064437,5.73040588,2295.0,2294.6,0.06255659]
[1725695064642,4.3575,2294.9,2294.6,0.06255659]
[1725695064843,4.35778,2294.8,2294.3,0.08715987]
[1725695065082,4.35778,2294.8,2294.7,0.0611332]
[1725695065237,4.35778,2294.8,2294.3,0.08715987]
[1725695065451,4.35778,2294.8,2294.7,0.0611332]
[1725695065778,4.35778,2294.8,2294.2,10.63041]
[1725695066000,4.35778,2294.8,2294.7,0.0611332]
[1725695066139,4.35778,2294.8,2294.2,10.63041]
[1725695066341,4.35778,2294.8,2294.3,0.0611332]
[1725695066898,4.3575,2294.9,2294.4,0.0611332]
[1725695067040,1.37307588,2295.0,2294.4,0.0611332]
[1725695067041,4.81339716,2295.0,2294.5,4.35823]
[1725695067364,4.81339716,2295.0,2294.5,0.08715159]
[1725695067568,4.81339716,2295.0,2294.6,0.0611332]
[1725695067569,4.3575,2294.9,2294.6,0.0611332]
[1725695067754,4.83885172,2294.9,2294.6,0.0611332]
[1725695068073,4.83885172,2294.9,2294.2,10.63048]
[1725695068235,4.35767,2294.8,2294.7,0.0611332]
[1725695068442,4.35767,2294.8,2294.3,19.3828992]
[1725695068642,4.35767,2294.8,2294.7,0.0611332]
[1725695069047,4.35767,2294.8,2294.3,19.3828992]
[1725695069250,4.35767,2294.8,2294.7,0.0611332]
[1725695069568,4.35767,2294.8,2294.3,19.3828992]
[1725695070011,4.35767,2294.8,2294.4,0.0611332]
[1725695072524,4.35787,2294.7,2294.4,0.0611332]
[1725695072812,4.35787,2294.7,2294.4,19.4440324]
[1725695075529,4.35807,2294.6,2294.4,19.4440324]
[1725695075707,4.35824,2294.5,2294.4,19.4440324]
[1725695078754,4.35824,2294.5,2294.4,0.0611332]
[1725695079062,4.35824,2294.5,2294.2,3.82]
[1725695079245,4.35824,2294.5,2294.4,0.05989379]
[1725695079561,4.35824,2294.5,2294.2,3.82]
[1725695079744,4.35824,2294.5,2294.4,0.05989379]
[1725695079950,4.35824,2294.5,2294.2,3.82]
[1725695080424,4.35824,2294.5,2294.3,0.06001645]
[1725695080630,4.35824,2294.5,2294.2,3.82]
[1725695080820,4.35824,2294.5,2294.4,0.06001645]
[1725695081079,4.35824,2294.5,2294.2,3.82]
[1725695081264,4.35824,2294.5,2294.4,0.06001645]
[1725695081557,4.35824,2294.5,2294.2,3.82]
[1725695081757,4.35824,2294.5,2294.4,0.06001645]
[1725695082223,4.35824,2294.5,2294.2,3.82]
[1725695082726,4.35824,2294.5,2294.3,0.06001645]
[1725695082946,5.461622,2294.5,2294.3,0.06001645]
[1725695083160,4.35843,2294.4,2294.2,3.82]
[1725695084462,9.820012,2294.5,2294.2,3.82]
[1725695085394,5.461622,2294.5,2294.2,3.82]
[1725695086901,6.67548,2294.7,2294.2,3.82]
[1725695086902,4.35811,2294.6,2294.2,8.17878]
[1725695087480,4.35811,2294.6,2294.2,3.82]
[1725695089769,0.45615297,2294.8,2294.3,6.63131]
[1725695089981,4.81391297,2294.8,2294.3,6.63131]
[1725695090782,4.81391297,2294.8,2294.3,26.0142092]
[1725695092210,4.81391297,2294.8,2294.6,4.35791]
[1725695092211,0.45615297,2294.8,2294.6,4.35791]
[1725695095677,0.45615297,2294.8,2294.7,0.06032311]
[1725695095881,0.45615297,2294.8,2294.7,19.44322231]
[1725695101148,0.45615297,2294.8,2294.7,21.89142231]
[1725695101356,0.45615297,2294.8,2294.7,35.13899937]
[1725695101510,0.01683061,2294.8,2294.7,42.35647661]
[1725695101847,4.35574,2295.9,2295.4,6.80457]
[1725695101848,4.3558,2295.8,2295.4,6.80457]
[1725695102035,4.3558,2295.8,2295.4,2.4482]
[1725695102221,4.3558,2295.8,2295.5,0.05929286]
[1725695103675,4.3558,2295.8,2295.3,19.3828992]
[1725695103833,4.3558,2295.8,2295.6,0.05929286]
[1725695104032,4.3558,2295.8,2295.3,23.7395992]
[1725695104232,4.3558,2295.8,2295.4,0.05929286]
[1725695105069,4.35574,2295.9,2295.4,0.05929286]
[1725695105070,4.35597,2295.7,2295.4,0.05929286]
[1725695105643,8.71147,2295.9,2295.4,19.44219206]
[1725695105838,4.35568,2295.9,2295.4,23.79871206]
[1725695106048,4.35568,2295.9,2295.4,23.79862206]
[1725695106264,4.35568,2295.9,2295.5,6.89166154]
[1725695106265,4.3556,2295.9,2295.5,6.89166154]
[1725695106428,4.3556,2295.9,2295.5,2.4482]
[1725695106628,4.3556,2295.9,2295.6,0.05929286]
[1725695106825,8.71128,2295.9,2295.6,0.05929286]
[1725695107256,8.71135,2295.9,2295.6,0.05929286]
[1725695107986,8.71192,2295.7,2295.6,0.05929286]
[1725695108187,4.35596,2295.7,2295.6,0.05929286]
[1725695108783,4.35596,2295.7,2295.4,19.3828992]
[1725695108991,4.35581,2295.8,2295.6,0.05929286]
[1725695109278,4.35581,2295.8,2295.7,0.05929286]
[1725695109487,4.35581,2295.8,2295.4,19.3828992]
[1725695109790,4.35581,2295.8,2295.7,0.05929286]
[1725695110001,4.35581,2295.8,2295.4,19.3828992]
[1725695110002,4.35619,2295.6,2295.4,19.3828992]
[1725695110150,4.35634,2295.5,2295.4,19.3828992]
[1725695110349,2.3667,2295.7,2295.4,19.3828992]
[1725695110350,4.35612,2295.7,2295.4,19.3828992]
[1725695110649,4.35612,2295.7,2295.5,0.05929286]
[1725695110890,4.35615,2295.6,2295.5,0.05929286]
[1725695112091,4.35615,2295.6,2295.3,19.3828992]
[1725695112260,4.35615,2295.6,2295.5,0.05839796]
[1725695112464,4.35615,2295.6,2295.3,19.3828992]
[1725695112762,4.3555,2296.0,2295.5,6.75863796]
[1725695112962,4.3555,2296.0,2295.5,6.7873545]
[1725695113180,8.71104,2296.0,2295.5,6.7873545]
[1725695113491,8.71104,2296.0,2295.6,0.05751534]
[1725695113492,4.35559,2295.9,2295.6,0.05751534]
[1725695114088,4.35596,2295.7,2295.6,0.05751534]
[1725695114380,4.35596,2295.7,2295.4,19.3828992]
[1725695114587,4.35596,2295.7,2295.6,0.05730703]
[1725695114790,4.35596,2295.7,2295.4,19.3828992]
[1725695115029,4.35596,2295.7,2295.6,0.05730703]
[1725695115233,4.35596,2295.7,2295.4,19.3828992]
[1725695115234,4.35634,2295.5,2295.4,19.3828992]
[1725695115895,4.35608,2295.7,2295.4,19.3828992]
[1725695116092,4.35571,2295.9,2295.5,0.08712875]
[1725695116919,4.35571,2295.9,2295.4,26.0833192]
[1725695117524,8.71148,2295.9,2295.4,21.7268992]
[1725695117729,8.71148,2295.9,2295.5,19.3828992]
[1725695118628,4.35578,2295.8,2295.5,19.3828992]
[1725695118844,4.356,2295.7,2295.5,19.3828992]
[1725695119409,4.35578,2295.8,2295.5,19.3828992]
[1725695119410,8.71165,2295.8,2295.5,19.3828992]
[1725695120140,4.35578,2295.8,2295.5,19.3828992]
[1725695120337,4.81169853,2296.0,2295.5,26.0830792]
[1725695121240,9.16721853,2296.0,2295.5,26.0830792]
[1725695122250,4.35562,2295.9,2295.5,26.0830792]